{"text_format":"2","workbook":"xlsx","n_sheets":1,"sheets":["Munka2"],"not_rendered":{"charts":0,"images":0,"macros":0,"external_links":0,"defined_names":0,"comments":0,"pivot_tables":0},"unopened":[],"bounds":{"document_bytes":16777216,"sheet_cells":100000,"run_cost":"one","rows_first":2000,"rows_last":500,"rows_between":2000,"halvings":0,"cell_chars":16384,"cell_head_chars":4096},"cells_cut":0,"cells_raw":0,"read":"whole","date_system":"1900"}

{"sheet":"Munka2","index":0,"n_rows":18,"n_cols":9,"rows_kept":18,"cut":false,"hidden":false,"merged":[[16,0,17,5],[13,0,15,0],[0,0,0,8],[3,0,10,0],[3,1,10,1],[3,8,15,8],[11,0,12,0],[2,0,2,8],[3,2,10,2],[11,2,12,2],[13,2,15,2]]}
["Egyszerhasználatos, hordozható vákuum terápiás rendszerek"]
["RK.","Megnevezés","Minimum szakmai követelmény","Minimum méretek","Mennyiség év/db","Nettó egységár ","Nettó érték ","Nettó érték 1.év","Részajánlati kör összesen"]
["1. részajánlati kör: Vákuum terápiás készülék fogyóanyagai "]
["1.1","Border dressing szett","Egyszer használatos, légáteresztő, lágy szilikon nedvszívó kötszer. Kimenettel /Transzfer porttal és akril rögzítőszalagokkal rendelkezik.  Sebbel érintkező felületét szilikon réteg fedi, mely a hámosodási folyamatokat is kedvezően támogatja.  Külső felületét filmkötszer fedi, mely a kötszer biztonságos,szivárgásmentes rögzítését teszi lehetővé. (ez a szett része) Tartalmazza a tartállyal oldhatóan összeköthető portot/szívófejet is, mely a sebpárnával, valamint filmkötszerrel egyben felhasználásra kész állapotban található. Szett része, valamint kiegészítő termékként is elérhető különböző méretekben az optimális - seb méretének megfelelő - választáshoz. Sterilen egyesével csomagolva.","10x20 cm",10,null,{"$f":"E4*F4","v":0},{"$f":"G4","v":0}]
[null,null,null,"10x30 cm",22,null,{"$f":"E5*F5","v":0},{"$f":"G5","v":0}]
[null,null,null,"10x35 cm",5,null,{"$f":"E6*F6","v":0},{"$f":"G6","v":0}]
[null,null,null,"15x15 cm",5,null,0,0]
[null,null,null,"15x20 cm",5,null,0,0]
[null,null,null,"15x30 cm",5,null,0,0]
[null,null,null,"20x20 cm",5,null,0,0]
[null,null,null,"25x25 cm",14,null,{"$f":"E11*F11","v":0},0]
["1.2","Pumpa (tartállyal)","Steril, egyszerhasználatos. 50 ml-es cserélhető tartállyal rendelkező eszköz. Hybrid kétutas. Hordozható. Elemmel működtethető akkumulátoros kivitelben, 4 db  elem található a csomagolásban. A készülék 14 nap üzemidővel rendelkezik.  A cserélhető tartály miatt a váladék kezelés mennyisége nem korlátozott. 125 Hgmm folyamatos negatív nyomáson működik. A vákuum mértéke folyamatos és állandó (125 Hgmm ) az egész terápia ideje alatt. Minimum 3 riasztási móddal rendelkezik:  Szivárgást, blokkolást, lemerült elemet, illetve belső hibát jelző riasztás fénnyel és hanggal egyaránt. A riasztásjeleknél kisebb prioritású információs jelek figyelhetők meg: Szünet üzemmód, terápiás üzemmód, érvénytelen gombnyomás, szivattyú önellenőrzése, vége a terápiának, szivárgás, blokkolás, lemerült elem.Egyszerű működésű. Magyar nyelvű tájékoztatót tartalmaz egészségügyi szakemberek számára, valamint  magyar nyelvű tájékoztatót tartalmaz a betegek számára is. A készülék és a hozzá szükséges fogyóanyagok, minden termékre vonatkozóan igazolhatóan steril termékek. Műtőben történő felhasználás céljára is alkalmas. A tartály min.50 ml űrtartalmú és tartalmaz folyadékmegkötő anyagot a váladék megkötésére, valamint rendelkezik egy speciális szeleppel az oldható csatlakozón, melyen keresztül tudja biztosítani és ellenőrizni a vákuum mértékét a seben ( Hybrid kétutas rendszer). A tartály a gép szett része, cserélhető, így önállóen egyesével is elérhető, ezzel a váladék mennyiség kezelése nincs korlátozva. ",null,35,null,{"$f":"F12*E12","v":0},{"$f":"G12","v":0}]
[null,"Tartály",null,"50 ml",320,null,{"$f":"F13*E13","v":0},{"$f":"G13","v":0}]
["1.3","Foam szett (transzfer port+szilikon film+foam)","Szettben:  Foam: 10cm x 8cm x 3cm. Egyszer használatos, steril, Poliuretán, sebkitöltő hab, amely eloszlatja a negatív nyomást a sebágyban, megkönnyíti a váladék elvezetését.\nFilm: 20cm x 27cm Egyszer használatos, steril, légáteresztő lágy szilikonfilm a Foam (hab) rögzítéséhez és a tömítés biztosításához (polietilén, poliuretán, lágy szilikon, poliakrilát ragasztóval.                                                                                                                                                          \nTranszfer Port: Egyszer használatos, steril,  poliolefin/poliuretán kimeneti nyílás a váladék elvezetéséhez (poliuretán, poliészter, poliakrilát ragasztóval) Sterilen csomagolva.                                                                                                                                                                                               \nIgény szerint rendelhető önállóan:  Foam: 10cm x 12cm x 1,5cm nagyságú poliuretán sebkitöltő hab. Egyszer használatos, steril, amely eloszlatja a negatív nyomást a sebágyban, ezzel megkönnyíti a váladék elvezetését.                                                                                                                                                                                                                                                                                  Film: 20cm x 27cm Egyszer használatos, steril, légáteresztő lágy szilikonfilm a Foam (hab) rögzítéséhez és a tömítés biztosításához (polietilén, poliuretán, lágy szilikon, poliakrilát ragasztóval. ","10x8x3cm; 20x27cm",100,null,{"$f":"F14*E14","v":0},{"$f":"G14","v":0}]
[null,"Öntapadó szilikon film ",null,"20x27 cm",150,null,{"$f":"F15*E15","v":0},{"$f":"G15","v":0}]
[null,"Sebkitöltő hab (foam)",null,"10x12x1,5 cm",20,null,{"$f":"F16*E16","v":0},{"$f":"G16","v":0}]
["Összesen: ",{"$nulls":5},"Összesen Nettó ","Összesen Nettó  1.év","Total Summ Nettó "]
[{"$nulls":6},{"$f":"SUM(G4:G16)","v":0},{"$f":"SUM(H4:H16)","v":0},{"$f":"H18","v":0}]